bitfinex/quotes_BTCUSD_20241206
["timestamp","ask_amount","ask_price","bid_price","bid_amount"]
[1733497358417,1.77803154,99381.0,99380.0,0.0057326]
[1733497358619,1.77803154,99381.0,99380.0,0.0037326]
[1733497359106,1.82803154,99381.0,99380.0,6e-07]
[1733497359308,1.83860041,99381.0,99380.0,6e-07]
[1733497359517,0.201338,99335.0,99334.0,0.0828]
[1733497359732,0.201357,99326.0,99325.0,0.0476]
[1733497359947,0.27000401,99335.0,99320.0,4e-07]
[1733497360148,0.201367,99321.0,99320.0,4e-07]
[1733497361403,0.202367,99321.0,99320.0,0.0040004]
[1733497361622,0.201359,99325.0,99320.0,4e-07]
[1733497361830,1.5,99321.0,99320.0,4e-07]
[1733497362283,1.501,99321.0,99320.0,0.0050004]
[1733497362715,0.002,99321.0,99320.0,0.0080004]
[1733497362939,0.27000401,99335.0,99320.0,0.0030004]
[1733497363779,0.402724,99324.0,99320.0,4e-07]
[1733497364186,1.524,99321.0,99320.0,0.0050004]
[1733497364388,1.62903154,99321.0,99320.0,0.0050004]
[1733497364607,1.62803154,99321.0,99320.0,4e-07]
[1733497365020,1.62903154,99321.0,99320.0,0.0140004]
[1733497365222,1.62903154,99321.0,99320.0,0.0090004]
[1733497365468,1.62803154,99321.0,99320.0,4e-07]
[1733497365683,1.62803154,99321.0,99320.0,0.0010004]
[1733497366090,1.62803154,99321.0,99320.0,4e-07]
[1733497366303,1.77803154,99321.0,99320.0,4e-07]
[1733497366510,1.78103154,99321.0,99320.0,4e-07]
[1733497367388,1.79003154,99321.0,99320.0,0.0010004]
[1733497367591,1.79003154,99321.0,99320.0,4e-07]
[1733497367792,1.80096261,99321.0,99320.0,4e-07]
[1733497368002,1.80596261,99321.0,99320.0,0.0010004]
[1733497368208,1.79096261,99321.0,99320.0,4e-07]
[1733497368467,1.79896261,99321.0,99320.0,0.0010004]
[1733497368884,1.64096261,99321.0,99320.0,4e-07]
[1733497369090,1.64896261,99321.0,99320.0,0.0010004]
[1733497369524,1.64696261,99321.0,99320.0,0.0010004]
[1733497369741,1.79896261,99321.0,99320.0,0.0010004]
[1733497370367,1.79096261,99321.0,99320.0,4e-07]
[1733497370799,1.79896261,99321.0,99320.0,0.0010004]
[1733497371012,1.79096261,99321.0,99320.0,4e-07]
[1733497371221,1.64096261,99321.0,99320.0,4e-07]
[1733497371430,1.79896261,99321.0,99320.0,0.0010004]
[1733497372516,1.79696261,99321.0,99320.0,0.0010004]
[1733497372934,1.79896261,99321.0,99320.0,0.0010004]
[1733497373350,1.79696261,99321.0,99320.0,0.0010004]
[1733497373559,1.78896261,99321.0,99320.0,4e-07]
[1733497373766,1.78996261,99321.0,99320.0,4e-07]
[1733497373976,1.78996261,99321.0,99320.0,0.0010004]
[1733497373977,1.79596261,99321.0,99320.0,0.0010004]
[1733497374244,1.87029416,99321.0,99320.0,4e-07]
[1733497374717,1.79396261,99321.0,99320.0,4e-07]
[1733497374920,1.78996261,99321.0,99320.0,4e-07]
[1733497375118,1.78896261,99321.0,99320.0,4e-07]
[1733497375311,1.79396261,99321.0,99320.0,0.0010004]
[1733497375528,1.78896261,99321.0,99320.0,4e-07]
[1733497376299,1.78996261,99321.0,99320.0,4e-07]
[1733497377517,0.201404,99303.0,99300.0,9e-07]
[1733497377693,0.224407,99301.0,99300.0,9e-07]
[1733497377893,0.47943854,99301.0,99300.0,9e-07]
[1733497378244,1.97943854,99301.0,99300.0,9e-07]
[1733497380249,1.98143854,99301.0,99300.0,9e-07]
[1733497380658,1.98743854,99301.0,99300.0,9e-07]
[1733497381287,1.99818852,99301.0,99300.0,9e-07]
[1733497381705,1.72015698,99301.0,99300.0,9e-07]
[1733497382186,1.67483164,99301.0,99300.0,9e-07]
[1733497383429,1.68708166,99301.0,99300.0,9e-07]
[1733497383643,1.531,99301.0,99300.0,9e-07]
[1733497383857,1.508,99301.0,99300.0,9e-07]
[1733497384064,1.61303154,99301.0,99300.0,9e-07]
[1733497384517,1.76303154,99301.0,99300.0,9e-07]
[1733497384728,1.76103154,99301.0,99300.0,9e-07]
[1733497384933,1.78403154,99301.0,99300.0,9e-07]
[1733497385151,1.78603154,99301.0,99300.0,9e-07]
[1733497385575,1.77803154,99301.0,99300.0,9e-07]
[1733497385818,1.673,99301.0,99300.0,9e-07]
[1733497386015,1.675,99301.0,99300.0,9e-07]
[1733497386239,1.677,99301.0,99300.0,0.0100009]
[1733497386455,1.525,99301.0,99300.0,0.0100009]
[1733497387084,1.63003154,99301.0,99300.0,0.0100009]
[1733497387291,1.63603154,99301.0,99300.0,0.0100009]
[1733497387739,0.351428,99291.0,99280.0,0.001732]
[1733497387944,0.47945954,99291.0,99280.0,0.001732]
[1733497388361,1.724428,99291.0,99280.0,0.001732]
[1733497389002,1.82945954,99291.0,99280.0,0.001732]
[1733497389216,1.97945954,99291.0,99280.0,0.001732]
[1733497389891,1.97945954,99291.0,99290.0,0.002731]
[1733497390136,1.99004246,99291.0,99290.0,0.002731]
[1733497390376,1.99204246,99291.0,99290.0,0.002731]
[1733497390789,2.02127675,99291.0,99290.0,0.002731]
[1733497390969,1.88701092,99291.0,99290.0,0.002731]
[1733497392052,1.726468,99291.0,99290.0,0.002731]
[1733497392259,1.703468,99291.0,99290.0,0.002731]
[1733497393095,1.701468,99291.0,99290.0,0.002731]
[1733497393315,1.703468,99291.0,99290.0,0.002731]
[1733497393523,1.726468,99291.0,99290.0,0.002731]
[1733497393730,1.724468,99291.0,99290.0,0.002731]
[1733497393938,1.726468,99291.0,99290.0,0.002731]
[1733497394162,1.726468,99291.0,99290.0,0.001731]
[1733497394794,1.726468,99291.0,99290.0,0.002731]
[1733497395433,1.726468,99291.0,99290.0,0.001731]
[1733497395639,1.726468,99291.0,99290.0,0.002731]
[1733497395847,1.724468,99291.0,99290.0,0.002731]
[1733497396058,1.729468,99291.0,99290.0,0.002731]
[1733497396267,0.17534522,99280.0,99270.0,0.01612167]
[1733497396893,0.201452,99279.0,99270.0,0.01612167]
[1733497397100,0.17534522,99280.0,99271.0,0.10503154]
[1733497397562,0.17534522,99280.0,99270.0,0.01612167]
[1733497397772,0.201462,99274.0,99270.0,0.01612167]
[1733497397994,0.402926,99274.0,99270.0,0.01612167]
[1733497398210,0.201476,99267.0,99266.0,6e-05]
[1733497398423,1.701476,99267.0,99266.0,6e-05]
[1733497398845,1.724476,99267.0,99266.0,6e-05]
[1733497399089,1.97950754,99267.0,99266.0,6e-05]
[1733497399285,1.99018524,99267.0,99266.0,6e-05]
[1733497399713,2.08968751,99267.0,99266.0,6e-05]
[1733497400139,1.99018524,99267.0,99266.0,6e-05]
[1733497400364,0.201509,99251.0,99250.0,0.0017326]
[1733497400577,0.32954054,99251.0,99250.0,0.0017326]
[1733497401035,0.47954054,99251.0,99250.0,0.0017326]
[1733497401280,1.97954054,99251.0,99250.0,0.0017326]
[1733497401484,1.97954054,99251.0,99216.0,0.0498]
[1733497401485,0.05,99247.0,99216.0,0.0498]
[1733497401704,0.22457,99221.0,99216.0,0.0498]
[1733497402114,1.72457,99221.0,99216.0,0.0498]
[1733497402359,1.523,99221.0,99208.0,0.0812]
[1733497402565,1.523,99221.0,99210.0,0.0203284]
[1733497402566,1.97960154,99221.0,99210.0,0.0203284]
[1733497402774,1.97964154,99221.0,99206.0,0.0148409]
[1733497403442,1.99043029,99221.0,99206.0,0.0148409]
[1733497404133,1.99043029,99221.0,99220.0,0.003732]
[1733497404554,0.46743029,99221.0,99220.0,0.001732]
[1733497405010,0.46743029,99221.0,99220.0,0.003732]
[1733497405222,0.20161,99221.0,99220.0,0.132132]
[1733497405429,1.70161,99221.0,99220.0,0.001732]
[1733497405851,1.80664154,99221.0,99220.0,0.003732]
[1733497406513,1.95664154,99221.0,99220.0,0.003732]
[1733497406729,1.98464154,99221.0,99220.0,0.003732]
[1733497406951,1.97964154,99221.0,99220.0,0.003732]
[1733497407157,1.97964154,99221.0,99220.0,0.001732]
[1733497407365,1.98064154,99221.0,99220.0,0.001732]
[1733497407605,1.98964154,99221.0,99220.0,0.001732]
[1733497408013,1.97964154,99221.0,99220.0,0.001732]
[1733497408221,1.97964154,99221.0,99206.0,0.0148409]
[1733497408222,0.351598,99207.0,99206.0,0.0148409]
[1733497408444,0.45662954,99207.0,99206.0,0.0148409]
[1733497408883,0.20161,99201.0,99200.0,1e-07]
[1733497409089,0.15,99200.0,99170.0,0.0017336]
[1733497409318,0.10503154,99199.0,99170.0,0.0017336]
[1733497409526,1.851631,99191.0,99170.0,0.0017336]
[1733497409727,1.95666254,99191.0,99170.0,0.0017336]
[1733497411011,1.701631,99191.0,99170.0,0.0017336]
[1733497411217,1.701671,99191.0,99170.0,0.0017336]
[1733497411425,4e-05,99191.0,99190.0,0.1326336]
[1733497412064,4e-05,99191.0,99190.0,0.0510336]
[1733497412268,4e-05,99191.0,99190.0,0.0017336]
[1733497412737,1.60507154,99191.0,99190.0,0.0017336]
[1733497412945,1.60707154,99191.0,99190.0,0.0017336]
[1733497413170,1.60507154,99191.0,99190.0,0.0017336]
[1733497413798,1.75707154,99191.0,99190.0,0.0047336]
[1733497413974,1.76762434,99191.0,99190.0,0.0047336]
[1733497414203,1.76762434,99191.0,99190.0,0.0017336]
[1733497414638,1.76562434,99191.0,99190.0,0.0017336]
[1733497414856,1.5105928,99191.0,99190.0,0.0017336]
[1733497415071,1.5125928,99191.0,99190.0,0.0017336]
[1733497415280,1.6625928,99191.0,99190.0,0.0017336]
[1733497416076,1.6605928,99191.0,99190.0,0.0017336]
[1733497416602,1.87251926,99191.0,99190.0,0.0017336]
[1733497416825,1.76762434,99191.0,99190.0,0.0017336]
[1733497417568,1.76562434,99191.0,99190.0,0.0017336]
[1733497417979,1.76862434,99191.0,99190.0,0.0017336]
[1733497418190,1.84162434,99191.0,99190.0,6e-07]
[1733497418399,1.97238015,99191.0,99190.0,6e-07]
[1733497418605,1.97238015,99191.0,99170.0,0.0017336]
[1733497418606,0.351671,99171.0,99170.0,0.0017336]
[1733497418807,0.45670254,99171.0,99170.0,0.0017336]
[1733497419233,1.95670254,99171.0,99170.0,0.0017336]
[1733497419843,1.851671,99171.0,99170.0,0.0017336]
[1733497420697,1.858671,99171.0,99170.0,0.0017336]
[1733497420869,1.5,99171.0,99170.0,0.0017336]
[1733497421279,1.502,99171.0,99170.0,0.0017336]
[1733497421884,1.502,99171.0,99170.0,0.1288336]
[1733497422223,1.502,99171.0,99170.0,0.1518336]
[1733497422989,1.502,99171.0,99170.0,0.25686514]
[1733497423413,1.453,99171.0,99170.0,0.26386514]
[1733497423595,0.001,99171.0,99170.0,0.24086514]
[1733497423796,0.17534522,99190.0,99170.0,0.23386514]
[1733497423997,0.17534522,99190.0,99171.0,0.10603971]
[1733497424222,4e-05,99191.0,99187.0,0.0756]
[1733497424446,0.0008668,99200.0,99194.0,0.023]
[1733497424670,0.0008668,99200.0,99195.0,0.10603943]
[1733497424818,0.0008668,99200.0,99195.0,0.10503154]
[1733497425858,0.0008668,99200.0,99190.0,0.02013367]
[1733497426199,0.17621202,99200.0,99190.0,0.12516521]
[1733497426355,0.17621202,99200.0,99190.0,0.02013367]
[1733497426757,1.5,99199.0,99190.0,0.02013367]
[1733497427407,1.5,99199.0,99195.0,0.002]
[1733497427817,0.17621202,99200.0,99195.0,0.002]
[1733497428067,0.17621202,99200.0,99190.0,0.02013367]
[1733497428068,0.201614,99199.0,99190.0,0.02013367]
[1733497428435,0.17621202,99200.0,99190.0,0.02013367]
[1733497428436,1.5,99191.0,99190.0,0.02013367]
[1733497429314,1.5,99191.0,99190.0,0.02513367]
[1733497429524,1.5,99191.0,99190.0,0.005]
[1733497429730,1.48,99191.0,99190.0,0.02054102]
[1733497429928,1.481,99191.0,99190.0,0.02054102]
[1733497430128,1.482,99191.0,99190.0,0.008]
[1733497430324,1.683631,99191.0,99190.0,0.008]
[1733497430534,1.683631,99191.0,99180.0,0.0017336]
[1733497430535,0.201651,99181.0,99180.0,0.0017336]
[1733497430756,1.701651,99181.0,99180.0,0.0017336]
[1733497430966,1.5,99181.0,99180.0,0.0017336]
[1733497431173,1.5,99181.0,99180.0,0.10676514]
[1733497432479,0.00204,99191.0,99180.0,0.10676514]
[1733497432480,0.00204,99191.0,99184.0,0.05]
[1733497432728,0.0008668,99200.0,99192.0,0.023]
[1733497432927,0.0008668,99200.0,99193.0,0.10603948]
[1733497433369,0.0008668,99200.0,99193.0,0.10503154]
[1733497434020,0.0008668,99200.0,99199.0,0.02060455]
[1733497434269,0.0008668,99200.0,99199.0,0.12563609]
[1733497434442,0.0018668,99200.0,99199.0,0.12563609]
[1733497434864,0.0028668,99200.0,99199.0,0.12563609]
[1733497435061,0.0028668,99200.0,99199.0,0.10503154]
[1733497435990,0.0018668,99200.0,99199.0,0.10503154]
[1733497436194,0.0008668,99200.0,99199.0,0.10503154]
[1733497436458,0.0018668,99200.0,99199.0,0.10703154]
[1733497436660,0.0018668,99200.0,99199.0,0.11103154]
[1733497436865,0.0018668,99200.0,99199.0,0.006]
[1733497437491,1.5018668,99200.0,99199.0,0.006]
[1733497437738,1.5018668,99200.0,99188.0,0.01974715]
[1733497437739,1.5008668,99200.0,99188.0,0.01974715]
[1733497437957,0.201635,99189.0,99188.0,0.01974715]
[1733497438395,0.201651,99181.0,99180.0,0.0017336]
[1733497438796,1.701651,99181.0,99180.0,0.0017336]
[1733497439381,1.70132958,99181.0,99180.0,0.0017336]
[1733497440577,1.70132958,99181.0,99180.0,0.0047336]
[1733497441009,1.70132958,99181.0,99180.0,0.0017336]
[1733497441010,1.85132958,99181.0,99180.0,0.0017336]
[1733497441605,1.85132958,99181.0,99180.0,0.0047336]
[1733497442757,1.85132958,99181.0,99180.0,0.0027336]
[1733497442758,1.70132958,99181.0,99180.0,0.0027336]
[1733497442959,0.20164,99187.0,99180.0,0.0027336]
[1733497442960,0.20164,99187.0,99180.0,0.10776514]
[1733497443169,0.201576,99218.0,99181.0,0.10503154]
[1733497443432,0.201614,99199.0,99186.0,0.04342733]
[1733497443629,0.17621202,99200.0,99192.0,0.201627]
[1733497443824,0.17621202,99200.0,99193.0,0.10503154]
[1733497444235,0.17621202,99200.0,99186.0,0.02042733]
[1733497444446,0.201635,99189.0,99187.0,0.10503154]
[1733497444645,0.201651,99181.0,99180.0,0.0017336]
[1733497444797,0.201651,99181.0,99180.0,0.02231622]
[1733497444998,0.201651,99181.0,99180.0,0.0017336]
[1733497445880,1.701651,99181.0,99180.0,0.0017336]
[1733497446744,1.851651,99181.0,99180.0,0.0017336]
[1733497446944,1.95768254,99181.0,99180.0,0.0077336]
[1733497447311,1.95768254,99181.0,99180.0,0.0047336]
[1733497447312,1.95668254,99181.0,99180.0,0.0047336]
[1733497447570,1.95768254,99181.0,99180.0,0.0097336]
[1733497447986,1.95668254,99181.0,99180.0,0.0017336]
[1733497448422,1.96717471,99181.0,99180.0,0.0017336]
[1733497448941,0.201712,99151.0,99150.0,0.001734]
[1733497449601,1.701712,99151.0,99150.0,0.001734]
[1733497450072,1.80674354,99151.0,99150.0,0.004734]
[1733497450327,1.95674354,99151.0,99150.0,0.004734]
[1733497450566,1.95674354,99151.0,99150.0,0.001734]
[1733497450788,1.95674354,99151.0,99150.0,0.004734]
[1733497451058,1.95674354,99151.0,99150.0,0.003734]
[1733497451290,1.95674354,99151.0,99109.0,0.22358032]
[1733497451291,0.201751,99132.0,99116.0,0.08943212]
[1733497451579,0.201751,99132.0,99094.0,0.22358032]
[1733497451580,0.201822,99097.0,99094.0,0.22358032]
[1733497451810,0.201822,99097.0,99090.0,0.001734]
[1733497451811,0.15,99096.0,99090.0,0.001734]
[1733497452071,0.17534522,99109.0,99090.0,0.001734]
[1733497452072,1.5,99091.0,99090.0,0.001734]
[1733497452319,1.5,99091.0,99090.0,0.10676554]
[1733497452569,0.201806,99106.0,99090.0,0.15676554]
[1733497452807,0.17534522,99100.0,99091.0,0.10503154]
[1733497453071,0.403658,99094.0,99090.0,0.001734]
[1733497453304,0.001,99091.0,99090.0,0.001734]
[1733497453791,0.403658,99094.0,99090.0,0.001734]
[1733497454273,0.403658,99094.0,99091.0,0.001]
[1733497454274,0.201832,99092.0,99091.0,0.001]
[1733497454515,0.201622,99092.0,99091.0,0.001]
[1733497455091,0.201622,99092.0,99091.0,0.003]
[1733497455819,0.201622,99092.0,99091.0,0.002]
[1733497456047,0.351622,99092.0,99091.0,0.002]
[1733497456265,0.15,99091.0,99090.0,0.001734]
[1733497456505,0.203622,99092.0,99090.0,0.001734]
[1733497456719,0.201622,99092.0,99090.0,0.001734]
[1733497457453,0.202622,99092.0,99090.0,0.001734]
[1733497457710,0.205622,99092.0,99090.0,0.001734]
[1733497459533,0.17534522,99101.0,99090.0,0.001734]
[1733497459534,0.08995968,99175.0,99090.0,0.001734]
[1733497459766,0.08995968,99175.0,99150.0,4.80507296]
[1733497459767,0.173,99157.0,99150.0,4.80507296]
[1733497460008,0.173,99157.0,99090.0,0.001734]
[1733497460009,0.1748638,99150.0,99090.0,0.001734]
[1733497460243,0.1748638,99150.0,99090.0,0.128134]
[1733497460244,0.201834,99091.0,99090.0,0.128134]
[1733497460458,0.201834,99091.0,99090.0,0.178134]
[1733497461716,0.17708062,99100.0,99099.0,0.1]
[1733497461952,0.2035514,99100.0,99099.0,0.1]
[1733497464381,0.2045514,99100.0,99099.0,0.1]
[1733497464832,0.2065514,99100.0,99099.0,0.1]
[1733497465092,0.2065514,99100.0,99090.0,0.078134]
[1733497465321,0.201834,99091.0,99090.0,0.001734]
[1733497465550,0.30686554,99091.0,99090.0,0.001734]
[1733497467055,0.31762271,99091.0,99090.0,0.001734]
[1733497467525,0.31762271,99091.0,99090.0,0.003734]
[1733497468164,0.31762271,99091.0,99090.0,0.004734]
[1733497468813,0.46762271,99091.0,99090.0,0.004734]
[1733497469237,0.21259117,99091.0,99090.0,0.004734]
[1733497469648,0.21259117,99091.0,99090.0,0.003734]
[1733497469861,0.21259117,99091.0,99090.0,0.001734]
[1733497470342,0.21359117,99091.0,99090.0,0.001734]
[1733497470584,0.21259117,99091.0,99090.0,0.001734]
[1733497470827,0.21459117,99091.0,99090.0,0.001734]
[1733497471056,0.201855,99081.0,99080.0,0.0017318]
[1733497471271,0.30688654,99081.0,99080.0,0.0017318]
[1733497472082,0.45688654,99081.0,99080.0,0.0017318]
[1733497472520,0.46715045,99081.0,99080.0,0.0017318]
[1733497472975,0.46815045,99081.0,99080.0,0.0017318]
[1733497473406,0.47015045,99081.0,99080.0,0.0017318]
[1733497473616,0.46715045,99081.0,99080.0,0.0017318]
[1733497473898,0.47015045,99081.0,99080.0,0.0017318]
[1733497476114,0.36511891,99081.0,99080.0,0.0517318]
[1733497476336,0.204855,99081.0,99080.0,0.0517318]
[1733497476554,0.003,99081.0,99080.0,0.0997318]
[1733497476787,0.003,99081.0,99080.0,0.33777251]
[1733497476984,0.003,99081.0,99080.0,0.33676334]
[1733497477219,0.002,99081.0,99080.0,0.33676334]
[1733497477446,0.17534522,99090.0,99089.0,0.1]
[1733497477673,0.01044556,99096.0,99095.0,0.05]
[1733497477881,0.201824,99097.0,99096.0,0.1]
[1733497478299,0.201824,99097.0,99096.0,0.05]
[1733497478732,0.201824,99097.0,99096.0,0.1]
[1733497479156,0.201824,99097.0,99096.0,0.05]
[1733497480006,0.18771632,99100.0,99099.0,0.2311]
[1733497480007,0.0017754,99100.0,99099.0,0.2311]
[1733497480450,0.0017754,99100.0,99099.0,0.33613154]
[1733497480653,0.201766,99125.0,99124.0,0.1]
[1733497481757,0.201766,99125.0,99124.0,0.2295]
[1733497481963,0.201759,99129.0,99128.0,0.05]
[1733497482403,0.201745,99135.0,99134.0,0.05]
[1733497483237,0.201759,99128.0,99126.0,0.05]
[1733497483448,0.01026778,99140.0,99111.0,0.05]
[1733497483449,0.201773,99122.0,99111.0,0.05]
[1733497483684,0.201791,99112.0,99108.0,0.1306]
[1733497483902,0.201791,99112.0,99108.0,0.0806]
[1733497484124,0.403584,99112.0,99108.0,0.0806]
[1733497485432,0.410584,99112.0,99108.0,0.0806]
[1733497485857,0.201795,99111.0,99107.0,0.05]
[1733497486026,0.40359,99111.0,99107.0,0.05]
[1733497486247,0.15,99109.0,99096.0,0.05]
[1733497486447,0.201819,99099.0,99095.0,0.0451]
[1733497486640,0.201819,99099.0,99095.0,0.0951]
[1733497486847,0.403638,99099.0,99095.0,0.0951]
[1733497487455,0.201817,99100.0,99080.0,8e-07]
[1733497487456,0.10503154,99096.0,99080.0,8e-07]
[1733497487689,0.201952,99034.0,99030.0,0.0890015]
[1733497487827,0.15,99031.0,99016.0,0.0805]
[1733497488030,0.15,99031.0,98994.0,0.22250375]
[1733497488031,0.403959,99020.0,99000.0,0.11862727]
[1733497488295,0.201972,99024.0,99000.0,0.11862727]
[1733497488296,0.201987,99016.0,99000.0,0.11862727]
[1733497488513,0.351999,99010.0,99000.0,0.03812727]
[1733497488943,0.351999,99010.0,99009.0,0.0098409]
[1733497489422,0.45703054,99010.0,99009.0,0.0098409]
[1733497490089,0.45703054,99010.0,99000.0,0.03812727]
[1733497490090,0.25503154,99010.0,99000.0,0.03165817]
[1733497490298,0.352018,99001.0,99000.0,0.03165817]
[1733497490517,0.45704954,99001.0,99000.0,1.7e-07]
[1733497491569,0.45904954,99001.0,99000.0,1.7e-07]
[1733497491979,0.46304954,99001.0,99000.0,1.7e-07]
[1733497492206,0.54975609,99001.0,99000.0,1.7e-07]
[1733497492423,0.46304954,99001.0,99000.0,1.7e-07]
[1733497492836,0.46104954,99001.0,99000.0,1.7e-07]
[1733497493318,0.358018,99001.0,99000.0,1.7e-07]
[1733497493771,0.356018,99001.0,99000.0,1.7e-07]
[1733497493975,0.208018,99001.0,99000.0,1.7e-07]
[1733497494838,0.202018,99001.0,99000.0,1.7e-07]
[1733497495046,0.206018,99001.0,99000.0,1.7e-07]
[1733497495276,0.202018,99001.0,99000.0,1.7e-07]
[1733497495482,0.352018,99001.0,99000.0,1.7e-07]
[1733497496312,0.352058,99001.0,99000.0,1.7e-07]
[1733497496736,0.356058,99001.0,99000.0,1.7e-07]
[1733497496969,0.354058,99001.0,99000.0,1.7e-07]
[1733497497182,0.352058,99001.0,99000.0,1.7e-07]
[1733497497383,0.356058,99001.0,99000.0,1.7e-07]
[1733497497611,0.354058,99001.0,99000.0,1.7e-07]
[1733497498012,0.356058,99001.0,99000.0,1.7e-07]
[1733497498233,0.354058,99001.0,99000.0,1.7e-07]
[1733497498707,0.358058,99001.0,99000.0,1.7e-07]
[1733497499667,0.358058,99001.0,99000.0,0.00086827]
[1733497499908,0.356058,99001.0,99000.0,0.00086827]
[1733497500144,0.354058,99001.0,99000.0,0.00086827]
[1733497500607,0.356058,99001.0,99000.0,0.00086827]
[1733497500865,0.202058,99001.0,99000.0,0.00086827]
[1733497501095,0.205058,99001.0,99000.0,0.05086827]
[1733497501582,0.205058,99001.0,99000.0,0.04636827]
[1733497503290,0.355058,99001.0,99000.0,0.04636827]
[1733497506871,0.205058,99001.0,99000.0,0.04636827]
[1733497507555,0.205058,99001.0,99000.0,0.09636827]
[1733497507779,0.00304,99001.0,99000.0,0.04636827]
[1733497507988,0.00304,99001.0,99000.0,0.09636827]
[1733497509074,0.00204,99001.0,99000.0,0.04636827]
[1733497509490,0.00304,99001.0,99000.0,0.04636827]
[1733497509693,0.00104,99001.0,99000.0,0.04636827]
[1733497509969,0.00204,99001.0,99000.0,0.04636827]
[1733497510179,0.00104,99001.0,99000.0,0.00086827]
[1733497510619,0.00204,99001.0,99000.0,0.00086827]
[1733497511045,0.10807154,99001.0,99000.0,0.00086827]
[1733497511268,0.10807154,99001.0,99000.0,2.7e-07]
[1733497511269,0.25807154,99001.0,99000.0,2.7e-07]
[1733497512631,0.35202,99000.0,98997.0,2.027e-05]
[1733497512837,0.15,98998.0,98997.0,2.027e-05]
[1733497513069,0.45705554,98998.0,98997.0,2.027e-05]
[1733497514136,0.45705554,98998.0,98997.0,0.00102027]
[1733497514376,0.46605554,98998.0,98997.0,0.00102027]
[1733497514589,0.46605554,98998.0,98997.0,2.027e-05]
[1733497515454,0.47939096,98998.0,98997.0,2.027e-05]
[1733497516165,0.56980024,98998.0,98997.0,2.027e-05]
[1733497516395,0.48439096,98998.0,98997.0,2.7e-07]
[1733497518234,0.28236696,98998.0,98981.0,0.0476]
[1733497518454,0.15,98981.0,98970.0,0.0821]
[1733497518668,0.202079,98971.0,98970.0,0.0821]
[1733497520617,0.202079,98971.0,98970.0,0.0831]
[1733497521275,0.202079,98971.0,98970.0,0.0821]
[1733497521700,0.21524768,98971.0,98970.0,0.0821]
[1733497522387,0.16316868,98971.0,98966.0,0.0462]
[1733497522645,0.202083,98969.0,98966.0,0.0462]
[1733497522875,0.404166,98969.0,98966.0,0.0462]
[1733497523838,0.404166,98969.0,98955.0,0.075]
[1733497523839,0.202099,98962.0,98955.0,0.075]
[1733497524109,0.20211,98956.0,98955.0,0.075]
[1733497524405,0.35211,98956.0,98955.0,0.075]
[1733497525144,0.15,98952.0,98936.0,0.05]
[1733497525366,0.01337494,98956.0,98950.0,0.05]
[1733497525563,0.01337494,98956.0,98920.0,0.02062736]
[1733497525564,0.202112,98955.0,98954.0,0.05]
[1733497525852,0.202112,98955.0,98954.0,0.1323]
[1733497526553,0.17650917,98980.0,98979.0,0.05]
[1733497526788,0.202061,98980.0,98979.0,0.05]
[1733497527957,0.41731111,98980.0,98979.0,0.05]
[1733497528670,0.21524911,98980.0,98979.0,0.05]
[1733497529386,0.21524911,98980.0,98979.0,0.052]
[1733497530602,0.21524911,98980.0,98979.0,0.05]
[1733497530832,0.01318811,98980.0,98979.0,0.052]
[1733497531375,0.17650917,98989.0,98988.0,0.05]
[1733497531588,0.001737,99000.0,98988.0,0.05]
[1733497531589,0.001737,99000.0,98999.0,0.05]
[1733497531795,0.01976783,99041.0,98999.0,0.05]
[1733497531796,0.17650917,99030.0,99009.0,0.05]
[1733497532001,0.201964,99028.0,99009.0,0.50694232]
[1733497532262,0.201975,99022.0,99009.0,0.30648038]
[1733497532481,0.17650917,99030.0,99009.0,0.30648038]
[1733497532698,0.37846817,99030.0,99029.0,0.05]
[1733497532915,0.201959,99030.0,99029.0,0.05]
[1733497534021,0.01298312,99037.0,99023.0,0.05]
[1733497534022,0.15,99029.0,99023.0,0.05]
[1733497534241,0.201969,99025.0,99023.0,0.05]
[1733497534454,0.201969,99025.0,99019.0,0.08993798]
[1733497534455,0.201979,99020.0,99019.0,0.05]
[1733497534879,0.201979,99020.0,99013.0,0.05]
[1733497535087,0.201979,99020.0,99009.0,0.26085526]
[1733497535088,0.201989,99015.0,99014.0,0.18468571]
[1733497536179,0.201989,99015.0,99014.0,0.05]
[1733497536398,0.20195,99034.0,99033.0,0.05]
[1733497537197,0.20195,99034.0,99014.0,0.19500171]
[1733497537198,0.20195,99034.0,99032.0,0.05]
[1733497537418,0.201952,99033.0,99032.0,0.05]
[1733497537823,0.201955,99032.0,99031.0,0.05]
[1733497538044,0.18956642,99040.0,99037.0,0.05]
[1733497538045,0.20194,99039.0,99037.0,0.05]
[1733497538281,0.40388,99039.0,99037.0,0.05]
[1733497538465,0.40388,99039.0,99033.0,0.05]
[1733497538466,0.20195,99034.0,99033.0,0.05]
[1733497538896,0.201942,99038.0,99037.0,0.05]
[1733497539110,0.201938,99040.0,99037.0,0.1284]
[1733497539326,0.201934,99042.0,99041.0,0.05]
[1733497539778,0.201934,99042.0,99041.0,0.05316738]
[1733497539989,0.201934,99042.0,99041.0,0.05]
[1733497540190,0.21486916,99042.0,99041.0,0.05]
[1733497540606,0.01693516,99042.0,99033.0,0.05]
[1733497540825,0.201936,99041.0,99033.0,0.05]
[1733497541029,0.201948,99035.0,99034.0,0.00317011]
[1733497541259,0.201948,99035.0,99033.0,0.05]
[1733497541454,0.201948,99035.0,99034.0,0.05]
[1733497542969,0.21487016,99042.0,99041.0,0.05]
[1733497543395,0.21487016,99042.0,99041.0,0.05315253]
[1733497543607,0.01293516,99042.0,99041.0,0.10015253]
[1733497543828,4e-05,99050.0,99049.0,0.073]
[1733497544029,4e-05,99050.0,99049.0,0.17904086]
[1733497544234,4e-05,99050.0,99049.0,0.0528525]
[1733497544454,4e-05,99050.0,99049.0,0.0028525]
[1733497544717,4e-05,99050.0,99049.0,0.0528525]
[1733497544923,4e-05,99050.0,99049.0,0.05]
[1733497545138,0.40384,99049.0,99045.0,0.05]
[1733497545362,0.40384,99049.0,99016.0,0.18477164]
[1733497545363,0.004,99042.0,99029.0,0.05]
[1733497545582,0.004,99042.0,99008.0,0.42129977]
[1733497545583,0.15,99037.0,99013.0,0.1308]